fUSD/lending_fUSD_20241114
["ID","MTS","AMOUNT","RATE_DAILY","PERIOD"]
[342192137,1731577838507,-1025482.53746578,0.0001,2]
[342192146,1731577840064,-684.1663532,0.0001,2]
[342192147,1731577840121,-5408.79993869,0.0001,2]
[342192148,1731577840133,-440.08368653,0.0001,2]
[342192149,1731577840166,-50951.58888072,0.0001,2]
[342192150,1731577840177,-768.52690656,0.0001,2]
[342192159,1731577840570,-88540.0,0.0001,2]
[342192161,1731577840581,-1875.79056322,0.0001,2]
[342192163,1731577840592,-2607.20000769,0.0001,2]
[342192165,1731577840606,-8145.720283,0.0001,2]
[342192167,1731577840617,-290136.30642017,0.0001,2]
[342192170,1731577840628,-88240.74425803,0.0001,2]
[342192171,1731577840644,-2314.74300993,0.0001,2]
[342192172,1731577840655,-45228.05243863,0.0001,2]
[342192173,1731577843192,-2507.83415776,0.0001,2]
[342192174,1731577843203,-2994.885744,0.0001,2]
[342192176,1731577843214,-6579.22038905,0.0001,2]
[342192177,1731577843304,-9541.79999835,0.0001,2]
[342192178,1731577843419,-5930.08320727,0.0001,2]
[342192179,1731577843431,-1581.30440036,0.0001,2]
[342192188,1731577846245,-1624.324801,0.0001,2]
[342192189,1731577846257,-351.508085,0.0001,2]
[342192190,1731577846268,-15035.67144613,0.0001,2]
[342192191,1731577846280,-313.01949265,0.0001,2]
[342192202,1731578243186,-11557.0,0.000108,5]
[342192203,1731578751935,1000.0,0.0002,60]
[342192204,1731578765764,1000.0,0.0002,60]
[342192205,1731578806070,1000.0,0.0002,60]
[342192206,1731578818280,1000.0,0.0002,60]
[342192207,1731578827757,1000.0,0.0002,60]
[342192208,1731578840808,1000.0,0.0002,60]
[342192209,1731578859386,1000.0,0.0002,60]
[342192210,1731578870929,1000.0,0.0002,60]
[342192211,1731578913540,1000.0,0.0002,60]
[342192212,1731578922838,1000.0,0.0002,60]
[342192213,1731578932803,1000.0,0.0002,60]
[342192214,1731578945342,1000.0,0.0002,60]
[342192215,1731578946101,-200.0,8.2e-05,2]
[342192216,1731578946123,-1124.8522,8.219e-05,2]
[342192217,1731578960062,1000.0,0.0002,60]
[342192218,1731578967671,1000.0,0.0002,60]
[342192219,1731578976469,1000.0,0.0002,60]
[342192227,1731579032492,-405.35,8.219e-05,2]
[342192228,1731579032504,-155.1178,8.219e-05,2]
[342192229,1731579032513,-346.68,8.453e-05,2]
[342192230,1731579032522,-8939.94005334,8.493e-05,2]
[342192231,1731579032620,-7281.25344,8.493e-05,2]
[342192232,1731579032632,-3348.28471647,8.493e-05,2]
[342192233,1731579032643,-4330.52179019,8.493e-05,2]
[342192234,1731579032652,-1045.66,8.493e-05,2]
[342192235,1731579032661,-1270.03,8.617e-05,2]
[342192236,1731579032670,-250.0,8.632e-05,2]
[342192237,1731579032680,-250.0,8.705e-05,2]
[342192238,1731579032690,-1000.0,8.814e-05,2]
[342192239,1731579032700,-165.83,8.896e-05,2]
[342192240,1731579032709,-432.72,9.041e-05,2]
[342192241,1731579032719,-150.22,9.127e-05,2]
[342192242,1731579032728,-150.22,9.133e-05,2]
[342192243,1731579032737,-150.22,9.139e-05,2]
[342192245,1731579032747,-763.3,9.14e-05,2]
[342192247,1731579032756,-150.22,9.144e-05,2]
[342192249,1731579032767,-150.22,9.15e-05,2]
[342192251,1731579032777,-150.22,9.156e-05,2]
[342192253,1731579032786,-160.92,9.158e-05,2]
[342192255,1731579032798,-150.22,9.161e-05,2]
[342192257,1731579032807,-150.22,9.167e-05,2]
[342192259,1731579032817,-150.22,9.173e-05,2]
[342192261,1731579032826,-453.32,9.277e-05,2]
[342192263,1731579032835,-1173.492,9.487e-05,2]
[342192265,1731579032846,-150.0,9.487e-05,2]
[342192267,1731579032855,-159.023,9.487e-05,2]
[342192269,1731579032864,-346.68,9.51e-05,2]
[342192271,1731579032873,-300.0,9.6e-05,2]
[342192273,1731579032882,-8289.4581,9.6e-05,2]
[342192275,1731579032891,-516.9808,9.6e-05,2]
[342192277,1731579032900,-576.9111,9.6e-05,2]
[342192279,1731579032909,-3669.0142,9.7e-05,2]
[342192281,1731579032918,-31034.1590099,9.7e-05,2]
[342192283,1731579032930,-186234.08617898,9.7e-05,2]
[342192285,1731579032941,-22848.0,9.7e-05,2]
[342192323,1731579038715,-695.12064654,9.7e-05,2]
[342192324,1731579038726,-148199.98166458,9.7e-05,2]
[342192325,1731579038735,-1000.0,9.7e-05,2]
[342192326,1731579038744,-34816.5098,9.7e-05,2]
[342192327,1731579038754,-100000.0,9.7e-05,2]
[342192328,1731579038763,-5933.0,9.822e-05,2]
[342192329,1731579038776,-244.724,9.822e-05,2]
[342192330,1731579038786,-13639.0,9.822e-05,2]
[342192331,1731579038798,-1160.0,9.822e-05,2]
[342192332,1731579038808,-1091.0,9.822e-05,2]
[342192333,1731579038820,-200.0,9.9e-05,2]
[342192334,1731579038830,-200.0,9.9e-05,2]
[342192335,1731579038840,-1059.0,9.9e-05,2]
[342192336,1731579038854,-1000.0,9.9e-05,2]
[342192337,1731579038863,-1000.0,9.9e-05,2]
[342192338,1731579038874,-1000.0,9.9e-05,2]
[342192339,1731579038889,-1000.0,9.9e-05,2]
[342192340,1731579038899,-1000.0,9.9e-05,2]
[342192341,1731579038908,-1000.0,9.9e-05,2]
[342192342,1731579038918,-1000.0,9.9e-05,2]
[342192343,1731579038927,-1000.0,9.9e-05,2]
[342192344,1731579038938,-654.79283044,9.9e-05,2]
[342192345,1731579038947,-654.79283043,9.9e-05,2]
[342192346,1731579038957,-1000.0,9.9e-05,2]
[342192348,1731579038967,-1000.0,9.9e-05,2]
[342192349,1731579038976,-1000.0,9.9e-05,2]
[342192350,1731579038986,-1000.0,9.916e-05,2]
[342192351,1731579038996,-161.83092581,9.973e-05,2]
[342192352,1731579039005,-161.88887669,9.973e-05,2]
[342192353,1731579039015,-162.87644404,9.973e-05,2]
[342192354,1731579039026,-608.23015029,9.973e-05,2]
[342192355,1731579039035,-500.0,9.973e-05,2]
[342192356,1731579039047,-500.0,9.973e-05,2]
[342192357,1731579039057,-249.94305184,9.999e-05,2]
[342192358,1731579039067,-19200.7,9.999e-05,2]
[342192359,1731579039076,-25376027.13826521,0.0001,2]
[342192360,1731579039086,-1000.0,0.0001,2]
[342192361,1731579039096,-1186.09061115,0.0001,2]
[342192363,1731579039106,-161.71585013,0.0001,2]
[342192364,1731579039116,-1000.0,0.0001,2]
[342192366,1731579039125,-1000.0,0.0001,2]
[342192368,1731579039135,-1000.0,0.0001,2]
[342192369,1731579039145,-15797.09445,0.0001,2]
[342192370,1731579039155,-1000.0,0.0001,2]
[342192371,1731579039164,-29070.0,0.0001,2]
[342192372,1731579039175,-1000.0,0.0001,2]
[342192373,1731579039184,-1000.0,0.0001,2]
[342192374,1731579039193,-132925.60078469,0.0001,2]
[342192375,1731579039206,-2218.1,0.0001,2]
[342192376,1731579039217,-3733.41055144,0.0001,2]
[342192377,1731579039228,-395968.9583453,0.0001,2]
[342192378,1731579039239,-9364.42115503,0.0001,2]
[342192379,1731579039251,-6821.36831515,0.0001,2]
[342192380,1731579039262,-635434.83672699,0.0001,2]
[342192381,1731579039273,-4042.4704268,0.0001,2]
[342192382,1731579039284,-1755.77,0.0001,2]
[342192383,1731579039295,-869.45897463,0.0001,2]
[342192384,1731579039311,-488.66430191,0.0001,2]
[342192385,1731579039334,-1240.737431,0.0001,2]
[342192386,1731579039346,-797.34379506,0.0001,2]
[342192387,1731579039357,-345.0,0.0001,2]
[342192388,1731579039369,-2512.71029907,0.0001,2]
[342192389,1731579039383,-875.69451227,0.0001,2]
[342192390,1731579039395,-3075.69549619,0.0001,2]
[342192391,1731579039405,-2256.64611454,0.0001,2]
[342192392,1731579039416,-993.47039983,0.0001,2]
[342192394,1731579040280,-598.76218636,0.0001,2]
[342192397,1731579040311,-309.4707929,0.0001,2]
[342192398,1731579040348,-9089.1829941,0.0001,2]
[342192402,1731579040459,-3642.48365558,0.0001,2]
[342192403,1731579040471,-332.62499998,0.0001,2]
[342192404,1731579040491,-3634.76,0.0001,2]
[342192409,1731579043326,-4879.3805,0.0001,2]
[342192410,1731579043363,-1165.43538126,0.0001,2]
[342192411,1731579043375,-2941.58303115,0.0001,2]
[342192412,1731579043386,-2842.81606569,0.0001,2]
[342192413,1731579043398,-6687.38227579,0.0001,2]
[342192414,1731579043409,-484.06150066,0.0001,2]
[342192415,1731579043568,-7608.29910617,0.0001,2]
[342192416,1731579043602,-2000.0,0.0001,2]
[342192421,1731579046326,-19270.75752528,0.0001,2]
[342192422,1731579046456,-909.2616581,0.0001,2]
[342192423,1731579046590,-8320.297254,0.0001,2]
[342192424,1731579046602,-6632.75745304,0.0001,2]
[342192425,1731579105232,1000.0,0.0002,60]
[342192426,1731579113577,1000.0,0.0002,60]
[342192427,1731579120911,1000.0,0.0002,60]
[342192428,1731579128563,1000.0,0.0002,60]
[342192429,1731579136935,1000.0,0.0002,60]
[342192430,1731579255865,1000.0,0.0002,60]
[342192431,1731579263650,1000.0,0.0002,60]
[342192432,1731579271198,1000.0,0.0002,60]
[342192433,1731579278685,1000.0,0.0002,60]
[342192434,1731579341969,3490.0,0.000195,60]
[342192435,1731579371512,-946.0961563,8.219e-05,2]
[342192436,1731579428470,927.52,0.0002,60]
[342192458,1731580231554,-200.0,8.2e-05,2]
[342192459,1731580231564,-1908.53,8.219e-05,2]
[342192460,1731580231574,-165.64,8.219e-05,2]
[342192461,1731580231584,-250.0,8.303e-05,2]
[342192462,1731580231594,-250.0,8.352e-05,2]
[342192463,1731580231603,-300.0,9e-05,3]
[342192464,1731580231613,-700.0,9.1e-05,3]
[342192465,1731580231622,-1000.0,9.18e-05,2]
[342192466,1731580231633,-1100.0,9.2e-05,3]
[342192467,1731580231642,-1023.05,9.216e-05,2]
[342192468,1731580231651,-591.99,9.218e-05,2]
[342192469,1731580231661,-300.0,9.218e-05,2]
[342192470,1731580231670,-1023.05,9.219e-05,2]
[342192471,1731580231680,-1023.05,9.221e-05,2]
[342192472,1731580231690,-1011.62261847,9.223e-05,2]
[342192473,1731580231702,-11.42738153,9.223e-05,2]
[342192474,1731580231714,-409.38861847,9.226e-05,2]
[342192475,1731580231725,-613.66138153,9.226e-05,2]
[342192476,1731580231734,-1023.05,9.228e-05,2]
[342192477,1731580231744,-689.69734608,9.231e-05,2]
[342192478,1731580231756,-333.35265392,9.231e-05,2]
[342192479,1731580231765,-1023.05,9.233e-05,2]
[342192480,1731580231774,-1023.05,9.236e-05,2]
[342192481,1731580231784,-29070.0,9.238e-05,2]
[342192482,1731580231794,-1023.05,9.238e-05,2]
[342192483,1731580231803,-1023.05,9.241e-05,2]
[342192484,1731580231813,-1023.05,9.243e-05,2]
[342192485,1731580231823,-1023.05,9.245e-05,2]
[342192486,1731580231832,-1023.05,9.248e-05,2]
[342192487,1731580231842,-150.0,9.25e-05,2]
[342192488,1731580231851,-1023.05,9.25e-05,2]
[342192489,1731580231861,-1023.05,9.253e-05,2]
[342192490,1731580231870,-1023.05,9.255e-05,2]
[342192491,1731580231880,-1023.05,9.258e-05,2]
[342192492,1731580231890,-1023.05,9.26e-05,2]
[342192493,1731580231899,-1023.05,9.262e-05,2]
[342192494,1731580231909,-1500.0,9.3e-05,3]
[342192495,1731580231919,-23900.0,9.36e-05,2]
[342192496,1731580231929,-1900.0,9.4e-05,3]
[342192497,1731580231938,-522.83,9.419e-05,2]
[342192498,1731580231948,-403.1032,9.5e-05,2]
[342192501,1731580231960,-300.0,9.5e-05,3]
[342192504,1731580231969,-14085.6813,9.6e-05,2]
[342192507,1731580231978,-81891.51296677,9.6e-05,2]
[342192510,1731580231995,-1972.65002971,9.6e-05,2]
[342192512,1731580232006,-2161.1378117,9.6e-05,2]
[342192514,1731580232017,-632.89790067,9.6e-05,2]
[342192515,1731580232028,-1019.74276316,9.6e-05,2]
[342192522,1731580237537,-14156.06339537,9.6e-05,2]
[342192524,1731580237573,-4536.67135902,9.6e-05,2]
[342192526,1731580237584,-17912.5402736,9.6e-05,2]
[342192528,1731580237594,-1000.0,9.6e-05,2]
[342192529,1731580237603,-300.0,9.6e-05,3]
[342192530,1731580237612,-300.0,9.6e-05,2]
[342192531,1731580237621,-1529.8,9.67e-05,2]
[342192532,1731580237630,-289.83,9.67e-05,2]
[342192534,1731580237639,-300.0,9.7e-05,3]
[342192535,1731580237648,-938.794,9.8e-05,2]
[342192536,1731580237657,-300.0,9.8e-05,3]
[342192537,1731580237666,-200.0,9.9e-05,2]
[342192538,1731580237675,-34816.5098,9.9e-05,2]
[342192539,1731580237683,-150.0,9.9e-05,2]
[342192540,1731580237693,-200.0,9.9e-05,2]
[342192541,1731580237702,-654.79283044,9.9e-05,2]
[342192542,1731580237713,-654.79283043,9.9e-05,2]
[342192543,1731580237722,-1100.0,9.9e-05,3]
[342192544,1731580237732,-608.23015029,9.973e-05,2]
[342192545,1731580237741,-161.88887669,9.973e-05,2]
[342192546,1731580237751,-161.83092581,9.973e-05,2]
[342192547,1731580237760,-162.87644404,9.973e-05,2]
[342192548,1731580237770,-500.0,9.973e-05,2]
[342192549,1731580237779,-500.0,9.973e-05,2]
[342192550,1731580237788,-249.94305184,9.999e-05,2]
[342192551,1731580237798,-9403.0,9.999e-05,2]
[342192552,1731580237807,-8254.99852149,9.999e-05,2]
[342192553,1731580237817,-38462.70834798,0.0001,2]
[342192554,1731580237869,-873.46,0.0001,2]
[342192555,1731580237880,-587.36428,0.0001,2]
[342192556,1731580237891,-692.937241,0.0001,2]
[342192557,1731580237910,-678.9,0.0001,2]
[342192558,1731580237921,-7198.03990865,0.0001,2]
[342192559,1731580237932,-23953.46073855,0.0001,2]
[342192560,1731580237944,-1003.18039146,0.0001,2]
[342192561,1731580238010,-25756365.9288707,0.0001,2]
[342192562,1731580238022,-841.585481,0.0001,2]
[342192570,1731580239657,-249.94305184,9.999e-05,2]
[342192571,1731580239667,-744.27686025,0.0001,2]
[342192572,1731580239678,-166999.371188,0.0001,2]
[342192573,1731580239689,-1302.16514,0.0001,2]
[342192574,1731580239701,-1334.29,0.0001,2]
[342192575,1731580239715,-416.8375,0.0001,2]
[342192576,1731580239828,-6450.0,0.0001,2]
[342192577,1731580239841,-326.99765875,0.0001,2]
[342192578,1731580239852,-1479.35091568,0.0001,2]
[342192579,1731580239974,-2813.71011091,0.0001,2]
[342192580,1731580239987,-13045.7451443,0.0001,2]
[342192581,1731580240020,-8155.727377,0.0001,2]
[342192586,1731580242488,-8634.04943002,0.0001,2]
[342192587,1731580242499,-1814.41885655,0.0001,2]
[342192588,1731580242527,-4422.786969,0.0001,2]
[342192589,1731580242538,-18260.8,0.0001,2]
[342192590,1731580242549,-8141.300662,0.0001,2]
[342192591,1731580242560,-7119.1472,0.0001,2]
[342192592,1731580242571,-3946.258063,0.0001,2]
[342192593,1731580242742,-4685.27573072,0.0001,2]
[342192594,1731580242753,-8102.53137989,0.0001,2]
[342192595,1731580242765,-4781.54512109,0.0001,2]
[342192596,1731580242776,-10477.47538582,0.0001,2]
[342192597,1731580242787,-8097.97609791,0.0001,2]
[342192598,1731580242798,-1679.73444342,0.0001,2]
[342192599,1731580242809,-8522.39644008,0.0001,2]
[342192600,1731580242820,-5792.38774302,0.0001,2]
[342192601,1731580242831,-4031.14330133,0.0001,2]
[342192602,1731580242842,-22127.42498274,0.0001,2]
[342192603,1731580242853,-2946.741287,0.0001,2]
[342192630,1731580245605,-3939.57391544,0.0001,2]
[342192631,1731580245616,-408.11780191,0.0001,2]
[342192632,1731580245636,-7930.0,0.0001,2]
[342192633,1731580245647,-29302.02972616,0.0001,2]
[342192634,1731580245658,-3011.73726026,0.0001,2]
[342192635,1731580245669,-32256.95247906,0.0001,2]
[342192636,1731580245740,-5479.59096,0.0001,2]
[342192637,1731580245751,-9147.3582,0.0001,2]
[342192638,1731580245790,-12613.16528453,0.0001,2]
[342192639,1731580476749,-210.53717626,0.00022,120]
[342192640,1731580493776,-19043.58171334,0.0002002,90]
[342192641,1731580493822,-1000.0,0.00024658,60]
[342192642,1731580493845,-1000.0,0.00024658,60]
[342192643,1731580493876,-100000.0,0.00025,60]
[342192644,1731580493915,-313.0,0.00027,60]
[342192645,1731580494361,-250.0,0.00027,120]
[342192887,1731581129017,3000.0,0.00027,60]
[342192902,1731581415639,10000.0,0.00027,60]
[342192903,1731581425536,7000.0,0.00027,60]
[342192906,1731581431631,-1813.1,8.219e-05,2]
[342192908,1731581431640,-165.64,8.219e-05,2]
[342192910,1731581431650,-759.62116104,8.885e-05,2]
[342192912,1731581431661,-547.45883896,8.885e-05,2]
[342192914,1731581431671,-852.813508,8.955e-05,2]
[342192916,1731581431684,-200.0,9e-05,3]
[342192918,1731581431693,-500.0,9.1e-05,3]
[342192920,1731581431703,-800.0,9.2e-05,3]
[342192922,1731581431713,-300.0,9.227e-05,2]
[342192923,1731581431722,-1112.85506423,9.228e-05,2]
[342192924,1731581431738,-22787.14493577,9.228e-05,2]
[342192925,1731581431747,-1000.0,9.292e-05,2]
[342192926,1731581431757,-1100.0,9.3e-05,3]
[342192927,1731581431767,-250.0,9.367e-05,2]
[342192928,1731581431776,-1300.0,9.4e-05,3]
[342192929,1731581431785,-200.0,9.5e-05,3]
[342192930,1731581431795,-250.0,9.556e-05,2]
[342192931,1731581431804,-326.4,9.582e-05,2]
[342192932,1731581431813,-150.0,9.589e-05,2]
[342192933,1731581431823,-200.0,9.6e-05,3]
[342192934,1731581431832,-200.0,9.7e-05,3]
[342192935,1731581431842,-200.0,9.8e-05,3]
[342192936,1731581431851,-36845.1501,9.8e-05,2]
[342192937,1731581431862,-751.035,9.899e-05,2]
[342192938,1731581431872,-150.0,9.899e-05,2]
[342192939,1731581431882,-200.0,9.9e-05,2]
[342192940,1731581431891,-100000.0,9.9e-05,2]
[342192941,1731581431903,-1000.0,9.9e-05,2]
[342192942,1731581431912,-327.85873605,9.9e-05,2]
[342192943,1731581431923,-17467.521,9.9e-05,2]
[342192944,1731581431936,-2156.551,9.9e-05,2]
[342192945,1731581431945,-795.7557,9.9e-05,2]
[342192946,1731581431955,-2500.0,9.9e-05,2]
[342192947,1731581431964,-800.0,9.9e-05,3]
[342192948,1731581431974,-142.58352822,9.999e-05,2]
[342192949,1731581431986,-19042.63647178,9.999e-05,2]
[342192951,1731581431995,-2680.19538723,9.999e-05,2]
[342192953,1731581432005,-4446638.05933733,0.0001,2]
[342192957,1731581432042,-1950.000006,0.0001,2]
[342192960,1731581432053,-2299.99999766,0.0001,2]
[342192964,1731581432087,-3998.23989066,0.0001,2]
[342192966,1731581432098,-757.70112046,0.0001,2]
[342192969,1731581432117,-1221.87501474,0.0001,2]
[342193034,1731581437755,-5305.36144738,0.0001,2]
[342193035,1731581437766,-8794.8006278,0.0001,2]
[342193036,1731581437778,-4229.84780564,0.0001,2]
[342193037,1731581437790,-974.65042688,0.0001,2]
[342193038,1731581437802,-1773.77309024,0.0001,2]
[342193039,1731581437814,-25756365.9288707,0.0001,2]
[342193040,1731581437960,-18086.56709623,0.0001,2]
[342193041,1731581438078,-1828.46,0.0001,2]
[342193042,1731581438090,-4958.75,0.0001,2]
[342193043,1731581438101,-776.34040586,0.0001,2]
[342193080,1731581439697,-2806.99904603,0.0001,2]
[342193082,1731581439708,-822.31492048,0.0001,2]
[342193086,1731581439779,-45706.82434669,0.0001,2]
[342193087,1731581439791,-13649.40756778,0.0001,2]
[342193088,1731581439803,-3063.15214909,0.0001,2]
[342193089,1731581439814,-18394.61843082,0.0001,2]
[342193090,1731581439827,-434.112,0.0001,2]
[342193091,1731581439846,-674.08,0.0001,2]
[342193092,1731581439857,-311.02,0.0001,2]
[342193093,1731581439869,-306.00866,0.0001,2]
[342193094,1731581439888,-22822.99448867,0.0001,2]
[342193095,1731581439943,-2016.7,0.0001,2]
[342193107,1731581442615,-893.025,0.0001,2]
[342193114,1731581442672,-296.13443335,0.0001,2]
[342193117,1731581442684,-16535.4946002,0.0001,2]
[342193121,1731581442727,-1217.50675063,0.0001,2]
[342193124,1731581442739,-9438.71263244,0.0001,2]
[342193127,1731581442751,-28070.64354316,0.0001,2]
[342193131,1731581442762,-3015.33689156,0.0001,2]
[342193134,1731581442774,-6837.64435681,0.0001,2]
[342193135,1731581442785,-1852.82557256,0.0001,2]
[342193136,1731581442797,-3826.54127948,0.0001,2]
[342193137,1731581442808,-2985.79259224,0.0001,2]
[342193138,1731581442820,-4044.07205263,0.0001,2]
[342193139,1731581442885,-1243.9391314,0.0001,2]
[342193140,1731581442896,-5966.12820384,0.0001,2]
[342193141,1731581442908,-7872.96524166,0.0001,2]
[342193142,1731581442919,-23362.32016691,0.0001,2]
[342193143,1731581442930,-18240.7258987,0.0001,2]
[342193144,1731581442944,-6409.0,0.0001,2]
[342193145,1731581442955,-947.40643778,0.0001,2]
[342193146,1731581442968,-1882.45970101,0.0001,2]
[342193147,1731581442979,-4658.03670453,0.0001,2]
[342193148,1731581442990,-446.91429972,0.0001,2]
[342193149,1731581443002,-384.34999965,0.0001,2]
[342193150,1731581443013,-820.01101364,0.0001,2]
[342193151,1731581443028,-5323.652,0.0001,2]
[342193190,1731581446823,-9990.00000003,0.0001,2]
[342193191,1731581446834,-302.0,0.0001,2]
[342193192,1731581446845,-1600.0,0.0001,2]
[342193193,1731581446856,-1992.82547722,0.0001,2]
[342193194,1731581446867,-496.302152,0.0001,2]
[342193195,1731581446877,-4376.0,0.0001,2]
[342193196,1731581446888,-7597.4,0.0001,2]
[342193197,1731581446898,-22755.0,0.0001,2]
[342193198,1731581446909,-429.24698272,0.0001,2]
[342193199,1731581446920,-562.3025196,0.0001,2]
[342193200,1731581446931,-936.626208,0.0001,2]
[342193201,1731581446944,-957.52,0.0001,2]
[342193202,1731581446955,-3900.75776183,0.0001,2]
[342193203,1731581446966,-1668.32821834,0.0001,2]
[342193204,1731581446977,-15979.87294959,0.0001,2]
[342193205,1731581446988,-371.88291753,0.0001,2]
[342193206,1731581446999,-1324.8,0.0001,2]
[342193207,1731581447010,-1541.84114511,0.0001,2]
[342193208,1731581447020,-9309.10477623,0.0001,2]
[342193209,1731581447031,-9135.874816,0.0001,2]
[342193210,1731581447043,-1046.1847932,0.0001,2]
[342193214,1731581508827,500.0,0.00027,60]
[342193217,1731581695820,-196.0,0.00034993,30]
[342193218,1731581695845,-196.0,0.00034993,30]
[342193219,1731581695868,-196.0,0.00034993,30]
[342193220,1731581695894,-200.0,0.00034993,30]
[342193221,1731581695917,-1000.0,0.00034993,30]
[342193222,1731581696290,-50000.0,0.00034993,30]
[342193223,1731581696330,-50000.0,0.00034993,31]
[342193224,1731581696356,-50000.0,0.00034993,32]
[342193225,1731581696382,-50000.0,0.00034993,33]
[342193226,1731581696407,-50000.0,0.00034993,34]
[342193227,1731581696433,-50000.0,0.00034993,35]
[342193228,1731581696458,-50000.0,0.00034993,30]
[342193229,1731581696483,-50000.0,0.00034993,31]
[342193230,1731581696507,-50000.0,0.00034993,32]
[342193231,1731581696531,-50000.0,0.00034993,33]
[342193232,1731581696556,-50000.0,0.00034993,34]
[342193233,1731581696580,-50000.0,0.00034993,30]
[342193234,1731581696606,-50000.0,0.00034993,31]
[342193235,1731581696630,-50000.0,0.00034993,32]
[342193236,1731581696657,-50000.0,0.00034993,33]
[342193237,1731581696682,-50000.0,0.00034993,34]
[342193238,1731581696709,-50000.0,0.00034993,35]
[342193239,1731581696731,-201.5,0.00034993,30]
[342193240,1731581696754,-1660.85,0.00034993,120]
[342193241,1731581696778,-1660.85,0.00034993,120]
[342193242,1731581696801,-1660.85,0.00034993,120]
[342193243,1731581696825,-1660.85,0.00034993,120]
[342193244,1731581696849,-1660.85,0.00034993,120]
[342193245,1731581696872,-1660.85,0.00034993,120]
[342193246,1731581696897,-1660.85,0.00034993,120]
[342193247,1731581696921,-1660.85,0.00034993,120]
[342193248,1731581696946,-1660.85,0.00034993,120]
[342193249,1731581696969,-1660.85,0.00034993,120]
[342193250,1731581696992,-1660.85,0.00034993,120]
[342193251,1731581697016,-1660.85,0.00034993,120]
[342193252,1731581697042,-1660.85,0.00034993,120]
[342193253,1731581697066,-1660.85,0.00034993,120]
[342193254,1731581697090,-1660.85,0.00034993,120]
[342193255,1731581697113,-1660.85,0.00034993,120]
[342193256,1731581697136,-1660.85,0.00034993,120]
[342193257,1731581697163,-1660.85,0.00034993,120]
[342193258,1731581697186,-1660.85,0.00034993,120]
[342193259,1731581697210,-1660.85,0.00034993,120]
[342193260,1731581697234,-1660.85,0.00034993,120]
[342193261,1731581697258,-1660.85,0.00034993,120]
[342193262,1731581697282,-1660.85,0.00034993,120]
[342193263,1731581697305,-1660.87417873,0.00034993,120]
[342193264,1731581697329,-3000.0,0.00034993,120]
[342193265,1731581697352,-1495.63,0.00034993,120]
[342193266,1731581697376,-1495.63,0.00034993,120]
[342193267,1731581697406,-1495.63,0.00034993,120]
[342193268,1731581697429,-1495.63,0.00034993,120]
[342193269,1731581697452,-1495.63,0.00034993,120]
[342193270,1731581697475,-1495.63,0.00034993,120]
[342193271,1731581697498,-1495.63,0.00034993,120]
[342193272,1731581697522,-1495.63,0.00034993,120]
[342193273,1731581697545,-1495.63,0.00034993,120]
[342193274,1731581697569,-1495.63,0.00034993,120]
[342193275,1731581697594,-1495.63,0.00034993,120]
[342193276,1731581697619,-1495.63,0.00034993,120]
[342193277,1731581697645,-1495.63,0.00034993,120]
[342193278,1731581697669,-1495.63,0.00034993,120]
[342193279,1731581697693,-1495.63,0.00034993,120]
[342193280,1731581697717,-1495.63,0.00034993,120]
[342193281,1731581697741,-1495.63,0.00034993,120]
[342193282,1731581697766,-1495.63,0.00034993,120]
[342193283,1731581697789,-1495.63,0.00034993,120]
[342193284,1731581697814,-1495.63,0.00034993,120]
[342193285,1731581697838,-1495.63,0.00034993,120]
[342193286,1731581697861,-1495.63,0.00034993,120]
[342193287,1731581697884,-1495.63,0.00034993,120]
[342193288,1731581697909,-1495.72735752,0.00034993,120]
[342193289,1731581697931,-1000.0,0.00034993,60]
[342193290,1731581697954,-1000.0,0.00034993,30]
[342193291,1731581697976,-1000.0,0.00034993,30]
[342193292,1731581698000,-3736.89,0.00034993,120]
[342193293,1731581698023,-3736.89,0.00034993,120]
[342193294,1731581698046,-3736.89,0.00034993,120]